[Event "Titled Tuesday Blitz August 08 Late 2023"]
[White "Iturrizaga Bonelli, Eduardo"]
[Black "Colbow, Collin"]
[WhiteFideId "3901211"]
[BlackFideId "16201132"]
[WhiteElo "2950"]
[BlackElo "2604"]
[Result "1-0"]
[Round "2"]
[TimeControl "180+1"]
[Date "2023.08.08"]
[WhiteClock "0:02:29"]
[BlackClock "0:00:51"]
[Board "14"]

1. c4 {[%clk 0:03:00]}  Nf6 {[%clk 0:02:56]} 2. g3 {[%clk 0:03:01]}  g6 {[%clk 0:02:56]} 3. Bg2 {[%clk 0:03:01]}  Bg7 {[%clk 0:02:57]} 4. Nc3 {[%clk 0:03:02]}  O-O {[%clk 0:02:57]} 5. d4 {[%clk 0:03:03]}  c6 {[%clk 0:02:57]} 6. e4 {[%clk 0:03:03]}  d6 {[%clk 0:02:50]} 7. Nf3 {[%clk 0:03:03]}  Nbd7 {[%clk 0:02:50]} 8. O-O {[%clk 0:03:04]}  Qc7 {[%clk 0:02:50]} 9. h3 {[%clk 0:03:03]}  e5 {[%clk 0:02:50]} 10. Be3 {[%clk 0:03:02]}  exd4 {[%clk 0:02:49]} 11. Nxd4 {[%clk 0:03:03]}  Nc5 {[%clk 0:02:44]} 12. Nb3 {[%clk 0:03:01]}  b6 {[%clk 0:02:36]} 13. Nxc5 {[%clk 0:02:58]}  dxc5 {[%clk 0:02:37]} 14. Bf4 {[%clk 0:02:56]}  Qb7 {[%clk 0:02:22]} 15. Qc1 {[%clk 0:02:53]}  Be6 {[%clk 0:02:22]} 16. b3 {[%clk 0:02:53]}  Rfd8 {[%clk 0:02:18]} 17. Bh6 {[%clk 0:02:46]}  Nd7 {[%clk 0:02:14]} 18. Bxg7 {[%clk 0:02:44]}  Kxg7 {[%clk 0:02:15]} 19. f4 {[%clk 0:02:45]}  f5 {[%clk 0:02:08]} 20. exf5 {[%clk 0:02:41]}  Bxf5 {[%clk 0:02:06]} 21. g4 {[%clk 0:02:41]}  Be6 {[%clk 0:01:28]} 22. f5 {[%clk 0:02:35]}  Bg8 {[%clk 0:01:28]} 23. Ne4 {[%clk 0:02:32]}  Rf8 {[%clk 0:01:18]} 24. Qc3+ {[%clk 0:02:29]}  Kf7 {[%clk 0:00:51]} 25. Nd6+ {[%clk 0:02:29]} 1-0


[Site "https://www.chess.com"]

[Event "Titled Tuesday Blitz August 08 Late 2023"]
[White "Attacker_2006"]
[Black "Fressinet, Laurent"]
[BlackFideId "608742"]
[WhiteElo "2581"]
[BlackElo "2913"]
[Result "0-1"]
[Round "2"]
[TimeControl "180+1"]
[Date "2023.08.08"]
[WhiteClock "0:00:25"]
[BlackClock "0:01:01"]
[Board "20"]

1. d4 {[%clk 0:02:52]}  Nf6 {[%clk 0:02:58]} 2. Bg5 {[%clk 0:02:51]}  c5 {[%clk 0:02:54]} 3. d5 {[%clk 0:02:43]}  d6 {[%clk 0:02:49]} 4. Nc3 {[%clk 0:02:42]}  Qb6 {[%clk 0:02:48]} 5. Rb1 {[%clk 0:02:40]}  g6 {[%clk 0:02:46]} 6. Bxf6 {[%clk 0:02:39]}  exf6 {[%clk 0:02:45]} 7. Nf3 {[%clk 0:02:37]}  Bg7 {[%clk 0:02:44]} 8. e4 {[%clk 0:02:37]}  O-O {[%clk 0:02:38]} 9. Bd3 {[%clk 0:02:37]}  Bg4 {[%clk 0:02:31]} 10. O-O {[%clk 0:02:31]}  Nd7 {[%clk 0:02:30]} 11. h3 {[%clk 0:02:31]}  Bxf3 {[%clk 0:02:29]} 12. Qxf3 {[%clk 0:02:31]}  Ne5 {[%clk 0:02:29]} 13. Qe2 {[%clk 0:02:27]}  Rac8 {[%clk 0:02:27]} 14. Bc4 {[%clk 0:02:26]}  Qb4 {[%clk 0:02:21]} 15. Bb3 {[%clk 0:02:21]}  c4 {[%clk 0:02:02]} 16. a3 {[%clk 0:02:20]}  Qc5 {[%clk 0:02:00]} 17. Ba2 {[%clk 0:02:17]}  Rfe8 {[%clk 0:01:59]} 18. Kh1 {[%clk 0:02:17]}  a6 {[%clk 0:01:57]} 19. f4 {[%clk 0:02:17]}  Nd7 {[%clk 0:01:57]} 20. Qf3 {[%clk 0:02:12]}  b5 {[%clk 0:01:55]} 21. Rfe1 {[%clk 0:02:07]}  Re7 {[%clk 0:01:42]} 22. Re2 {[%clk 0:02:06]}  Rce8 {[%clk 0:01:37]} 23. Rbe1 {[%clk 0:02:07]}  f5 {[%clk 0:01:30]} 24. exf5 {[%clk 0:02:01]}  Rxe2 {[%clk 0:01:31]} 25. Rxe2 {[%clk 0:01:47]}  Rxe2 {[%clk 0:01:29]} 26. Qxe2 {[%clk 0:01:48]}  Bxc3 {[%clk 0:01:25]} 27. bxc3 {[%clk 0:01:30]}  Qxa3 {[%clk 0:01:23]} 28. fxg6 {[%clk 0:00:53]}  hxg6 {[%clk 0:01:21]} 29. f5 {[%clk 0:00:48]}  Qc1+ {[%clk 0:01:14]} 30. Kh2 {[%clk 0:00:48]}  Qf4+ {[%clk 0:01:14]} 31. g3 {[%clk 0:00:48]}  Qxf5 {[%clk 0:01:14]} 32. Qe8+ {[%clk 0:00:40]}  Kg7 {[%clk 0:01:12]} 33. h4 {[%clk 0:00:37]}  Ne5 {[%clk 0:01:08]} 34. Qb8 {[%clk 0:00:25]}  Qf2+ {[%clk 0:01:01]} 35. Kh3 {[%clk 0:00:25]}  Qf1+ {[%clk 0:01:01]} 36. Kh2 {[%clk 0:00:25]}  Ng4# {[%clk 0:01:01]} 0-1


[Site "https://www.chess.com"]

[Event "Titled Tuesday Blitz August 08 Late 2023"]
[White "Terry, Renato"]
[Black "Ismagilov, Damir"]
[WhiteFideId "3803457"]
[BlackFideId "34199982"]
[WhiteElo "2911"]
[BlackElo "2576"]
[Result "1-0"]
[Round "2"]
[TimeControl "180+1"]
[Date "2023.08.08"]
[WhiteClock "0:00:25"]
[BlackClock "0:00:00"]
[Board "21"]

1. e4 {[%clk 0:03:00]}  c5 {[%clk 0:02:59]} 2. Nf3 {[%clk 0:03:01]}  Nf6 {[%clk 0:02:58]} 3. Qe2 {[%clk 0:02:59]}  d5 {[%clk 0:02:54]} 4. e5 {[%clk 0:02:55]}  Ng4 {[%clk 0:02:37]} 5. h3 {[%clk 0:02:53]}  Nh6 {[%clk 0:02:36]} 6. g4 {[%clk 0:02:54]}  Nc6 {[%clk 0:02:36]} 7. Bg2 {[%clk 0:02:53]}  g6 {[%clk 0:02:35]} 8. c3 {[%clk 0:02:49]}  d4 {[%clk 0:02:34]} 9. d3 {[%clk 0:02:47]}  Bg7 {[%clk 0:02:29]} 10. Bf4 {[%clk 0:02:37]}  Be6 {[%clk 0:02:24]} 11. O-O {[%clk 0:02:32]}  Qd7 {[%clk 0:02:13]} 12. cxd4 {[%clk 0:02:13]}  cxd4 {[%clk 0:02:11]} 13. Na3 {[%clk 0:02:09]}  Bd5 {[%clk 0:02:04]} 14. Rfe1 {[%clk 0:02:04]}  O-O {[%clk 0:02:00]} 15. Nc4 {[%clk 0:01:26]}  b5 {[%clk 0:01:38]} 16. Ncd2 {[%clk 0:01:19]}  Rac8 {[%clk 0:01:38]} 17. a3 {[%clk 0:01:13]}  Kh8 {[%clk 0:01:17]} 18. Ne4 {[%clk 0:01:09]}  f5 {[%clk 0:01:02]} 19. Nc5 {[%clk 0:00:53]}  Qd8 {[%clk 0:00:51]} 20. g5 {[%clk 0:00:53]}  Nf7 {[%clk 0:00:46]} 21. e6 {[%clk 0:00:53]}  Nd6 {[%clk 0:00:43]} 22. Nd7 {[%clk 0:00:52]}  Re8 {[%clk 0:00:40]} 23. Rac1 {[%clk 0:00:47]}  Rc7 {[%clk 0:00:27]} 24. h4 {[%clk 0:00:47]}  Bxf3 {[%clk 0:00:20]} 25. Bxf3 {[%clk 0:00:45]}  Nb8 {[%clk 0:00:20]} 26. Nc5 {[%clk 0:00:40]}  Qc8 {[%clk 0:00:18]} 27. b4 {[%clk 0:00:41]}  a5 {[%clk 0:00:17]} 28. h5 {[%clk 0:00:42]}  axb4 {[%clk 0:00:16]} 29. axb4 {[%clk 0:00:41]}  Nc6 {[%clk 0:00:15]} 30. h6 {[%clk 0:00:42]}  Bf8 {[%clk 0:00:15]} 31. Qb2 {[%clk 0:00:36]}  Kg8 {[%clk 0:00:11]} 32. Kg2 {[%clk 0:00:35]}  Nb7 {[%clk 0:00:09]} 33. Bxc7 {[%clk 0:00:31]}  Qxc7 {[%clk 0:00:08]} 34. Nxb7 {[%clk 0:00:31]}  Qxb7 {[%clk 0:00:07]} 35. Bxc6 {[%clk 0:00:31]}  Qc7 {[%clk 0:00:04]} 36. Bxe8 {[%clk 0:00:30]}  Qf4 {[%clk 0:00:04]} 37. Kf1 {[%clk 0:00:27]}  Qh4 {[%clk 0:00:02]} 38. Bf7+ {[%clk 0:00:26]}  Kh8 {[%clk 0:00:01]} 39. Re4 {[%clk 0:00:26]}  Qh3+ {[%clk 0:00:01]} 40. Ke2 {[%clk 0:00:26]}  Qh5+ {[%clk 0:00:01]} 41. Ke1 {[%clk 0:00:25]}  Qh1+ {[%clk 0:00:00]} 42. Kd2 {[%clk 0:00:25]} 1-0


[Site "https://www.chess.com"]

[Event "Titled Tuesday Blitz August 08 Late 2023"]
[White "Kovalev, Vladislav"]
[Black "Musovic, Armin"]
[WhiteFideId "13504398"]
[BlackFideId "939935"]
[WhiteElo "2905"]
[BlackElo "2573"]
[Result "1-0"]
[Round "2"]
[TimeControl "180+1"]
[Date "2023.08.08"]
[WhiteClock "0:00:12"]
[BlackClock "0:00:19"]
[Board "23"]

1. e4 {[%clk 0:03:00]}  c6 {[%clk 0:03:00]} 2. Nf3 {[%clk 0:02:59]}  d5 {[%clk 0:03:00]} 3. d3 {[%clk 0:03:00]}  dxe4 {[%clk 0:03:00]} 4. dxe4 {[%clk 0:03:00]}  Qxd1+ {[%clk 0:03:01]} 5. Kxd1 {[%clk 0:03:01]}  Bg4 {[%clk 0:03:01]} 6. Be2 {[%clk 0:03:02]}  g6 {[%clk 0:03:02]} 7. Ne1 {[%clk 0:03:00]}  h5 {[%clk 0:03:00]} 8. f3 {[%clk 0:02:54]}  Bc8 {[%clk 0:02:57]} 9. c3 {[%clk 0:02:51]}  b6 {[%clk 0:02:58]} 10. a4 {[%clk 0:02:50]}  h4 {[%clk 0:02:54]} 11. Nd2 {[%clk 0:02:48]}  Nf6 {[%clk 0:02:51]} 12. Nc4 {[%clk 0:02:48]}  Nh5 {[%clk 0:02:49]} 13. Bg5 {[%clk 0:02:40]}  h3 {[%clk 0:02:40]} 14. g4 {[%clk 0:02:40]}  Ng7 {[%clk 0:02:38]} 15. Be3 {[%clk 0:02:33]}  Ne6 {[%clk 0:02:36]} 16. g5 {[%clk 0:02:33]}  f6 {[%clk 0:02:26]} 17. gxf6 {[%clk 0:02:23]}  exf6 {[%clk 0:02:27]} 18. Kc2 {[%clk 0:02:23]}  Nd7 {[%clk 0:02:25]} 19. b4 {[%clk 0:02:19]}  Ne5 {[%clk 0:02:24]} 20. Nxe5 {[%clk 0:02:17]}  fxe5 {[%clk 0:02:25]} 21. Rg1 {[%clk 0:02:14]}  Bh6 {[%clk 0:02:21]} 22. Bxh6 {[%clk 0:02:11]}  Rxh6 {[%clk 0:02:22]} 23. Nd3 {[%clk 0:02:10]}  Nf4 {[%clk 0:02:16]} 24. Nxf4 {[%clk 0:02:08]}  exf4 {[%clk 0:02:17]} 25. Rad1 {[%clk 0:02:01]}  Ke7 {[%clk 0:02:15]} 26. Bc4 {[%clk 0:01:28]}  a6 {[%clk 0:02:13]} 27. Rg5 {[%clk 0:01:24]}  b5 {[%clk 0:02:08]} 28. Ba2 {[%clk 0:01:17]}  Bd7 {[%clk 0:01:35]} 29. Re5+ {[%clk 0:01:17]}  Kd8 {[%clk 0:01:36]} 30. Re6 {[%clk 0:01:01]}  bxa4 {[%clk 0:01:27]} 31. Rxc6 {[%clk 0:00:57]}  Ke7 {[%clk 0:01:23]} 32. Rc7 {[%clk 0:00:52]}  Rd8 {[%clk 0:01:24]} 33. Bc4 {[%clk 0:00:33]}  g5 {[%clk 0:01:21]} 34. Ra7 {[%clk 0:00:26]}  Ke8 {[%clk 0:01:01]} 35. Rd5 {[%clk 0:00:24]}  Bb5 {[%clk 0:00:46]} 36. Re5+ {[%clk 0:00:21]}  Kf8 {[%clk 0:00:47]} 37. Rf7+ {[%clk 0:00:21]}  Kg8 {[%clk 0:00:46]} 38. Rd7+ {[%clk 0:00:17]}  Bxc4 {[%clk 0:00:43]} 39. Rxd8+ {[%clk 0:00:17]}  Kf7 {[%clk 0:00:43]} 40. Rxg5 {[%clk 0:00:15]}  Ke7 {[%clk 0:00:38]} 41. Rd4 {[%clk 0:00:15]}  Bf1 {[%clk 0:00:34]} 42. e5 {[%clk 0:00:12]}  Bg2 {[%clk 0:00:32]} 43. Rxf4 {[%clk 0:00:13]}  Ke6 {[%clk 0:00:30]} 44. Rf6+ {[%clk 0:00:12]}  Rxf6 {[%clk 0:00:30]} 45. exf6 {[%clk 0:00:13]}  Kxf6 {[%clk 0:00:31]} 46. f4 {[%clk 0:00:14]}  Be4+ {[%clk 0:00:26]} 47. Kb2 {[%clk 0:00:14]}  Bf3 {[%clk 0:00:23]} 48. c4 {[%clk 0:00:14]}  Be2 {[%clk 0:00:23]} 49. c5 {[%clk 0:00:14]}  Bb5 {[%clk 0:00:23]} 50. Ka3 {[%clk 0:00:12]}  Bd7 {[%clk 0:00:21]} 51. Rh5 {[%clk 0:00:11]}  Kg6 {[%clk 0:00:22]} 52. Rd5 {[%clk 0:00:12]}  Bb5 {[%clk 0:00:22]} 53. c6 {[%clk 0:00:12]}  Kf6 {[%clk 0:00:19]} 54. c7 {[%clk 0:00:12]} 1-0


[Site "https://www.chess.com"]

[Event "Titled Tuesday Blitz August 08 Late 2023"]
[White "Pert, Richard G"]
[Black "Khanin, Semen"]
[WhiteFideId "404748"]
[BlackFideId "4111990"]
[WhiteElo "2567"]
[BlackElo "2893"]
[Result "1-0"]
[Round "2"]
[TimeControl "180+1"]
[Date "2023.08.08"]
[WhiteClock "0:00:15"]
[BlackClock "0:00:14"]
[Board "26"]

1. d4 {[%clk 0:03:00]}  Nf6 {[%clk 0:02:59]} 2. Bg5 {[%clk 0:03:00]}  d5 {[%clk 0:02:59]} 3. Bxf6 {[%clk 0:02:56]}  gxf6 {[%clk 0:02:58]} 4. c4 {[%clk 0:02:55]}  e6 {[%clk 0:02:56]} 5. e3 {[%clk 0:02:50]}  dxc4 {[%clk 0:02:47]} 6. Bxc4 {[%clk 0:02:49]}  c5 {[%clk 0:02:47]} 7. Ne2 {[%clk 0:02:46]}  Nc6 {[%clk 0:02:47]} 8. O-O {[%clk 0:02:44]}  cxd4 {[%clk 0:02:46]} 9. exd4 {[%clk 0:02:44]}  Bg7 {[%clk 0:02:43]} 10. Nbc3 {[%clk 0:02:43]}  O-O {[%clk 0:02:42]} 11. d5 {[%clk 0:02:39]}  Ne5 {[%clk 0:02:42]} 12. Bb3 {[%clk 0:02:39]}  f5 {[%clk 0:02:40]} 13. Ng3 {[%clk 0:02:24]}  Ng4 {[%clk 0:02:29]} 14. h3 {[%clk 0:02:21]}  Nf6 {[%clk 0:02:28]} 15. Nh5 {[%clk 0:02:14]}  Nxh5 {[%clk 0:02:27]} 16. Qxh5 {[%clk 0:02:15]}  Qf6 {[%clk 0:02:23]} 17. Rad1 {[%clk 0:02:11]}  Rd8 {[%clk 0:02:16]} 18. Rfe1 {[%clk 0:01:55]}  Bd7 {[%clk 0:02:05]} 19. Re3 {[%clk 0:01:49]}  e5 {[%clk 0:01:58]} 20. Rg3 {[%clk 0:01:33]}  f4 {[%clk 0:01:53]} 21. Rg5 {[%clk 0:01:03]}  Kf8 {[%clk 0:00:45]} 22. d6 {[%clk 0:00:49]}  Be6 {[%clk 0:00:43]} 23. Ne4 {[%clk 0:00:40]}  Qh6 {[%clk 0:00:42]} 24. Bxe6 {[%clk 0:00:34]}  fxe6 {[%clk 0:00:33]} 25. Qg4 {[%clk 0:00:32]}  Rac8 {[%clk 0:00:15]} 26. Rh5 {[%clk 0:00:29]}  Qg6 {[%clk 0:00:16]} 27. Ng5 {[%clk 0:00:29]}  Kg8 {[%clk 0:00:16]} 28. Qxe6+ {[%clk 0:00:16]}  Qxe6 {[%clk 0:00:16]} 29. Nxe6 {[%clk 0:00:17]}  Rd7 {[%clk 0:00:17]} 30. Nxg7 {[%clk 0:00:12]}  Kxg7 {[%clk 0:00:17]} 31. Rxe5 {[%clk 0:00:13]}  Kf6 {[%clk 0:00:18]} 32. Re4 {[%clk 0:00:12]}  Kf5 {[%clk 0:00:18]} 33. Re7 {[%clk 0:00:12]}  Rcd8 {[%clk 0:00:17]} 34. Rxd7 {[%clk 0:00:12]}  Rxd7 {[%clk 0:00:18]} 35. Kf1 {[%clk 0:00:12]}  Ke5 {[%clk 0:00:18]} 36. Ke2 {[%clk 0:00:13]}  Ke4 {[%clk 0:00:17]} 37. Rd2 {[%clk 0:00:13]}  h5 {[%clk 0:00:17]} 38. h4 {[%clk 0:00:13]}  b5 {[%clk 0:00:17]} 39. b4 {[%clk 0:00:13]}  a6 {[%clk 0:00:17]} 40. a3 {[%clk 0:00:13]}  Kf5 {[%clk 0:00:12]} 41. Kf3 {[%clk 0:00:13]}  Ke5 {[%clk 0:00:13]} 42. Rd1 {[%clk 0:00:13]}  Ke6 {[%clk 0:00:10]} 43. Kxf4 {[%clk 0:00:12]}  Rf7+ {[%clk 0:00:10]} 44. Kg5 {[%clk 0:00:11]}  Kd7 {[%clk 0:00:10]} 45. f3 {[%clk 0:00:11]}  Rg7+ {[%clk 0:00:11]} 46. Kxh5 {[%clk 0:00:11]}  Rxg2 {[%clk 0:00:12]} 47. f4 {[%clk 0:00:11]}  Rg3 {[%clk 0:00:11]} 48. f5 {[%clk 0:00:12]}  Rxa3 {[%clk 0:00:12]} 49. Kg6 {[%clk 0:00:12]}  Rg3+ {[%clk 0:00:11]} 50. Kf6 {[%clk 0:00:12]}  Rg4 {[%clk 0:00:11]} 51. h5 {[%clk 0:00:12]}  Rxb4 {[%clk 0:00:11]} 52. h6 {[%clk 0:00:12]}  Rh4 {[%clk 0:00:11]} 53. Kg7 {[%clk 0:00:12]}  Rg4+ {[%clk 0:00:12]} 54. Kf7 {[%clk 0:00:13]}  Rh4 {[%clk 0:00:12]} 55. Kg6 {[%clk 0:00:13]}  Rg4+ {[%clk 0:00:12]} 56. Kf6 {[%clk 0:00:13]}  Rh4 {[%clk 0:00:12]} 57. Kg5 {[%clk 0:00:13]}  Rh2 {[%clk 0:00:12]} 58. f6 {[%clk 0:00:14]}  b4 {[%clk 0:00:13]} 59. f7 {[%clk 0:00:13]}  Rg2+ {[%clk 0:00:13]} 60. Kf6 {[%clk 0:00:12]}  Rf2+ {[%clk 0:00:13]} 61. Kg7 {[%clk 0:00:13]}  a5 {[%clk 0:00:13]} 62. f8=Q {[%clk 0:00:13]}  Rxf8 {[%clk 0:00:13]} 63. Kxf8 {[%clk 0:00:14]}  b3 {[%clk 0:00:14]} 64. h7 {[%clk 0:00:14]}  a4 {[%clk 0:00:14]} 65. h8=Q {[%clk 0:00:14]}  a3 {[%clk 0:00:14]} 66. Qg7+ {[%clk 0:00:15]} 1-0


[Site "https://www.chess.com"]

[Event "Titled Tuesday Blitz August 08 Late 2023"]
[White "Mendez Fortes, Eduardo Jesus"]
[Black "Tahbaz, Arash"]
[WhiteFideId "3502376"]
[BlackFideId "12528846"]
[WhiteElo "2564"]
[BlackElo "2887"]
[Result "0-1"]
[Round "2"]
[TimeControl "180+1"]
[Date "2023.08.08"]
[WhiteClock "0:00:34"]
[BlackClock "0:00:47"]
[Board "27"]

1. e4 {[%clk 0:03:00]}  g6 {[%clk 0:02:59]} 2. d4 {[%clk 0:03:00]}  Bg7 {[%clk 0:03:00]} 3. Nc3 {[%clk 0:03:01]}  d6 {[%clk 0:03:01]} 4. f4 {[%clk 0:03:00]}  Nf6 {[%clk 0:03:00]} 5. Nf3 {[%clk 0:03:00]}  O-O {[%clk 0:03:00]} 6. Bd3 {[%clk 0:02:58]}  Nc6 {[%clk 0:03:00]} 7. O-O {[%clk 0:02:55]}  Bg4 {[%clk 0:02:49]} 8. Be3 {[%clk 0:02:51]}  e5 {[%clk 0:02:49]} 9. fxe5 {[%clk 0:02:32]}  dxe5 {[%clk 0:02:49]} 10. d5 {[%clk 0:02:32]}  Nd4 {[%clk 0:02:50]} 11. Be2 {[%clk 0:02:26]}  Nxe2+ {[%clk 0:02:49]} 12. Qxe2 {[%clk 0:02:25]}  Ne8 {[%clk 0:02:50]} 13. h3 {[%clk 0:02:24]}  Bxf3 {[%clk 0:02:50]} 14. Rxf3 {[%clk 0:02:21]}  Nd6 {[%clk 0:02:43]} 15. Nb5 {[%clk 0:02:02]}  Nxe4 {[%clk 0:02:37]} 16. Bxa7 {[%clk 0:02:00]}  Ng5 {[%clk 0:02:26]} 17. Rc3 {[%clk 0:01:51]}  e4 {[%clk 0:01:32]} 18. Rxc7 {[%clk 0:01:47]}  Rxa7 {[%clk 0:01:28]} 19. h4 {[%clk 0:01:39]}  Ra5 {[%clk 0:01:27]} 20. Rc5 {[%clk 0:00:49]}  Qb6 {[%clk 0:01:15]} 21. Qc4 {[%clk 0:00:49]}  Rc8 {[%clk 0:00:58]} 22. b4 {[%clk 0:00:43]}  Bxa1 {[%clk 0:00:55]} 23. a4 {[%clk 0:00:40]}  Rxa4 {[%clk 0:00:48]} 24. Kh1 {[%clk 0:00:34]}  Rxc5 {[%clk 0:00:47]} 0-1


[Site "https://www.chess.com"]

[Event "Titled Tuesday Blitz August 08 Late 2023"]
[White "Bilan, Danila"]
[Black "Aravindh, Chithambaram VR."]
[WhiteFideId "24161918"]
[BlackFideId "5072786"]
[WhiteElo "2563"]
[BlackElo "2881"]
[Result "1-0"]
[Round "2"]
[TimeControl "180+1"]
[Date "2023.08.08"]
[WhiteClock "0:00:14"]
[BlackClock "0:00:00"]
[Board "29"]

1. d4 {[%clk 0:03:00]}  Nf6 {[%clk 0:02:57]} 2. Nf3 {[%clk 0:03:01]}  g6 {[%clk 0:02:56]} 3. Bg5 {[%clk 0:03:01]}  Bg7 {[%clk 0:02:56]} 4. c3 {[%clk 0:03:01]}  O-O {[%clk 0:02:55]} 5. Nbd2 {[%clk 0:03:01]}  d6 {[%clk 0:02:54]} 6. e4 {[%clk 0:03:01]}  Nbd7 {[%clk 0:02:54]} 7. Qc2 {[%clk 0:03:00]}  e5 {[%clk 0:02:53]} 8. dxe5 {[%clk 0:03:01]}  dxe5 {[%clk 0:02:52]} 9. Bc4 {[%clk 0:03:01]}  h6 {[%clk 0:02:44]} 10. Bh4 {[%clk 0:02:59]}  Qe8 {[%clk 0:02:44]} 11. O-O {[%clk 0:02:55]}  Nh5 {[%clk 0:02:44]} 12. a4 {[%clk 0:02:54]}  a5 {[%clk 0:02:35]} 13. Rfe1 {[%clk 0:02:54]}  g5 {[%clk 0:02:33]} 14. Bg3 {[%clk 0:02:51]}  Nf4 {[%clk 0:02:23]} 15. Nf1 {[%clk 0:02:47]}  Nf6 {[%clk 0:02:23]} 16. Ne3 {[%clk 0:02:43]}  Kh8 {[%clk 0:02:00]} 17. Nf5 {[%clk 0:02:32]}  Bxf5 {[%clk 0:01:52]} 18. exf5 {[%clk 0:02:33]}  e4 {[%clk 0:01:52]} 19. Nd2 {[%clk 0:02:22]}  Qe5 {[%clk 0:01:47]} 20. Nxe4 {[%clk 0:02:06]}  Qxf5 {[%clk 0:01:37]} 21. Bxf4 {[%clk 0:01:50]}  Qxf4 {[%clk 0:01:38]} 22. Nxf6 {[%clk 0:01:44]}  Qxf6 {[%clk 0:01:39]} 23. Rad1 {[%clk 0:01:42]}  Rae8 {[%clk 0:01:31]} 24. Ba2 {[%clk 0:01:40]}  b6 {[%clk 0:01:26]} 25. Bb1 {[%clk 0:01:36]}  Rxe1+ {[%clk 0:01:18]} 26. Rxe1 {[%clk 0:01:35]}  Qg6 {[%clk 0:01:18]} 27. Qxg6 {[%clk 0:01:30]}  fxg6 {[%clk 0:01:19]} 28. Bxg6 {[%clk 0:01:30]}  Bf6 {[%clk 0:01:18]} 29. g3 {[%clk 0:01:14]}  Rd8 {[%clk 0:01:18]} 30. Re2 {[%clk 0:01:13]}  Kg7 {[%clk 0:01:18]} 31. Bc2 {[%clk 0:01:09]}  c6 {[%clk 0:01:04]} 32. Be4 {[%clk 0:01:01]}  Rd6 {[%clk 0:00:59]} 33. c4 {[%clk 0:00:54]}  Bd4 {[%clk 0:00:45]} 34. b3 {[%clk 0:00:51]}  Kf6 {[%clk 0:00:42]} 35. Kg2 {[%clk 0:00:51]}  Bc5 {[%clk 0:00:40]} 36. g4 {[%clk 0:00:45]}  Re6 {[%clk 0:00:33]} 37. h3 {[%clk 0:00:40]}  Rd6 {[%clk 0:00:32]} 38. Bf5 {[%clk 0:00:40]}  Kf7 {[%clk 0:00:19]} 39. Kf3 {[%clk 0:00:36]}  Bd4 {[%clk 0:00:10]} 40. Kg3 {[%clk 0:00:32]}  Bc3 {[%clk 0:00:09]} 41. h4 {[%clk 0:00:25]}  Kf6 {[%clk 0:00:08]} 42. h5 {[%clk 0:00:24]}  Be5+ {[%clk 0:00:07]} 43. Kg2 {[%clk 0:00:19]}  Rd4 {[%clk 0:00:05]} 44. Be4 {[%clk 0:00:18]}  Ke6 {[%clk 0:00:02]} 45. Kf3 {[%clk 0:00:17]}  Kd6 {[%clk 0:00:02]} 46. Bf5 {[%clk 0:00:16]}  Rf4+ {[%clk 0:00:01]} 47. Kg2 {[%clk 0:00:16]}  Rd4 {[%clk 0:00:02]} 48. Re3 {[%clk 0:00:15]}  Rd2 {[%clk 0:00:00]} 49. Kf3 {[%clk 0:00:14]} 1-0


[Site "https://www.chess.com"]

[Event "Titled Tuesday Blitz August 08 Late 2023"]
[White "Isanzhulov, Arystan"]
[Black "Di Nicolantonio, Lucas"]
[WhiteFideId "13711644"]
[BlackFideId "680460"]
[WhiteElo "2874"]
[BlackElo "2561"]
[Result "1-0"]
[Round "2"]
[TimeControl "180+1"]
[Date "2023.08.08"]
[WhiteClock "0:00:10"]
[BlackClock "0:00:03"]
[Board "30"]

1. a3 {[%clk 0:03:00]}  g6 {[%clk 0:02:59]} 2. g3 {[%clk 0:03:01]}  Bg7 {[%clk 0:03:00]} 3. Bg2 {[%clk 0:03:01]}  Nf6 {[%clk 0:02:55]} 4. Nf3 {[%clk 0:03:01]}  O-O {[%clk 0:02:56]} 5. O-O {[%clk 0:03:01]}  d5 {[%clk 0:02:56]} 6. d4 {[%clk 0:03:01]}  Ne4 {[%clk 0:02:56]} 7. Nbd2 {[%clk 0:03:00]}  c5 {[%clk 0:02:52]} 8. e3 {[%clk 0:02:56]}  Nc6 {[%clk 0:02:51]} 9. c3 {[%clk 0:02:47]}  Bf5 {[%clk 0:02:41]} 10. Nh4 {[%clk 0:02:45]}  Nxd2 {[%clk 0:02:38]} 11. Bxd2 {[%clk 0:02:44]}  Bd3 {[%clk 0:02:38]} 12. Re1 {[%clk 0:02:44]}  c4 {[%clk 0:02:38]} 13. e4 {[%clk 0:02:44]}  dxe4 {[%clk 0:02:22]} 14. Bxe4 {[%clk 0:02:45]}  Bxe4 {[%clk 0:02:22]} 15. Rxe4 {[%clk 0:02:45]}  e6 {[%clk 0:02:23]} 16. Nf3 {[%clk 0:02:42]}  Qd5 {[%clk 0:02:21]} 17. Rh4 {[%clk 0:02:39]}  b5 {[%clk 0:02:17]} 18. Bh6 {[%clk 0:02:38]}  Ne7 {[%clk 0:02:14]} 19. Bxg7 {[%clk 0:02:35]}  Kxg7 {[%clk 0:02:15]} 20. Qe2 {[%clk 0:02:28]}  Nf5 {[%clk 0:02:13]} 21. Re4 {[%clk 0:02:28]}  h5 {[%clk 0:02:11]} 22. Re1 {[%clk 0:02:27]}  a6 {[%clk 0:02:08]} 23. Re5 {[%clk 0:02:26]}  Qd7 {[%clk 0:02:06]} 24. Qd2 {[%clk 0:02:25]}  Rfe8 {[%clk 0:02:00]} 25. Qf4 {[%clk 0:02:24]}  Rad8 {[%clk 0:01:58]} 26. Ng5 {[%clk 0:02:23]}  Kg8 {[%clk 0:01:39]} 27. Ne4 {[%clk 0:02:22]}  Qe7 {[%clk 0:01:35]} 28. Rc5 {[%clk 0:02:17]}  Kg7 {[%clk 0:01:26]} 29. Rc7 {[%clk 0:02:15]}  e5 {[%clk 0:01:14]} 30. Qxe5+ {[%clk 0:01:15]}  Qxe5 {[%clk 0:01:14]} 31. dxe5 {[%clk 0:01:16]}  Rxe5 {[%clk 0:01:13]} 32. f4 {[%clk 0:01:17]}  Re6 {[%clk 0:01:11]} 33. Rxf7+ {[%clk 0:01:17]}  Kg8 {[%clk 0:01:08]} 34. Ra7 {[%clk 0:01:01]}  Nd6 {[%clk 0:00:52]} 35. Rxa6 {[%clk 0:01:00]}  Rxe4 {[%clk 0:00:50]} 36. Rd1 {[%clk 0:00:59]}  Re6 {[%clk 0:00:47]} 37. Kg2 {[%clk 0:00:57]}  Kf7 {[%clk 0:00:47]} 38. Rd2 {[%clk 0:00:50]}  Ke7 {[%clk 0:00:45]} 39. Rb6 {[%clk 0:00:41]}  Re3 {[%clk 0:00:28]} 40. Kf2 {[%clk 0:00:32]}  Rd3 {[%clk 0:00:25]} 41. Re2+ {[%clk 0:00:31]}  Kf7 {[%clk 0:00:24]} 42. Kg2 {[%clk 0:00:20]}  Rd7 {[%clk 0:00:24]} 43. Rb8 {[%clk 0:00:16]}  h4 {[%clk 0:00:24]} 44. Rb6 {[%clk 0:00:15]}  hxg3 {[%clk 0:00:23]} 45. hxg3 {[%clk 0:00:12]}  Nf5 {[%clk 0:00:24]} 46. g4 {[%clk 0:00:13]}  Nh4+ {[%clk 0:00:22]} 47. Kh2 {[%clk 0:00:12]}  Rf3 {[%clk 0:00:19]} 48. Rxb5 {[%clk 0:00:11]}  Rxf4 {[%clk 0:00:18]} 49. Kg3 {[%clk 0:00:10]}  g5 {[%clk 0:00:09]} 50. Rxg5 {[%clk 0:00:10]}  Rf3+ {[%clk 0:00:01]} 51. Kxh4 {[%clk 0:00:10]}  Rdd3 {[%clk 0:00:02]} 52. Rh5 {[%clk 0:00:08]}  Kg6 {[%clk 0:00:02]} 53. Re6+ {[%clk 0:00:07]}  Kf7 {[%clk 0:00:02]} 54. Rb6 {[%clk 0:00:08]}  Rh3+ {[%clk 0:00:02]} 55. Kg5 {[%clk 0:00:08]}  Rhe3 {[%clk 0:00:03]} 56. Rh7+ {[%clk 0:00:08]}  Kg8 {[%clk 0:00:03]} 57. Rc7 {[%clk 0:00:09]}  Re5+ {[%clk 0:00:04]} 58. Kf6 {[%clk 0:00:09]}  Re8 {[%clk 0:00:04]} 59. Kg6 {[%clk 0:00:09]}  Rdd8 {[%clk 0:00:03]} 60. g5 {[%clk 0:00:10]}  Kh8 {[%clk 0:00:04]} 61. Rh7+ {[%clk 0:00:10]}  Kg8 {[%clk 0:00:04]} 62. Kh6 {[%clk 0:00:11]}  Rd5 {[%clk 0:00:02]} 63. Rg7+ {[%clk 0:00:10]}  Kh8 {[%clk 0:00:03]} 64. Rbg6 {[%clk 0:00:10]}  Rf8 {[%clk 0:00:03]} 65. Rh7# {[%clk 0:00:10]} 1-0


[Site "https://www.chess.com"]